[Event "Early-Titled-Tuesday-Blitz-February-06-2024"]
[Site "Chess.com"]
[Date "2024.02.06"]
[Round "6"]
[White "SharapovEvgeny"]
[Black "PavelShkapenko"]
[Result "0-1"]
[WhiteElo "2533"]
[BlackElo "2765"]
[TimeControl "180+1"]
[EndTime "9:05:12 PST"]
[Termination "PavelShkapenko won by checkmate"]

1. e4 {[%clk 0:03:00.2]} 1... e5 {[%clk 0:03:00.6]} 2. Nf3 {[%clk 0:03:00.1]}
2... Nc6 {[%clk 0:03:00.8]} 3. Bb5 {[%clk 0:03:00.3]} 3... Bc5 {[%clk
0:03:00.2]} 4. O-O {[%clk 0:02:59.7]} 4... d6 {[%clk 0:03:00.2]} 5. c3 {[%clk
0:02:59.7]} 5... Bd7 {[%clk 0:03:00.9]} 6. d4 {[%clk 0:02:59.5]} 6... Bb6 {[%clk
0:03:01.6]} 7. d5 {[%clk 0:02:59.6]} 7... Nb8 {[%clk 0:03:01.3]} 8. Bxd7+ {[%clk
0:03:00]} 8... Nxd7 {[%clk 0:03:02.2]} 9. c4 {[%clk 0:03:00.5]} 9... Ngf6 {[%clk
0:03:02.4]} 10. Nc3 {[%clk 0:03:00.9]} 10... Ba5 {[%clk 0:03:03]} 11. Bg5 {[%clk
0:02:56.8]} 11... Bxc3 {[%clk 0:03:00.9]} 12. bxc3 {[%clk 0:02:56.8]} 12... h6
{[%clk 0:02:59.2]} 13. Bxf6 {[%clk 0:02:56.8]} 13... Qxf6 {[%clk 0:03:00.1]} 14.
Nd2 {[%clk 0:02:54.8]} 14... Nc5 {[%clk 0:02:57.5]} 15. f3 {[%clk 0:02:54.3]}
15... Qg5 {[%clk 0:02:55.4]} 16. Kh1 {[%clk 0:02:53.7]} 16... O-O {[%clk
0:02:54.2]} 17. Nb3 {[%clk 0:02:53.5]} 17... Nd7 {[%clk 0:02:54.4]} 18. Qe2
{[%clk 0:02:52.4]} 18... b6 {[%clk 0:02:53.9]} 19. g3 {[%clk 0:02:51]} 19... a5
{[%clk 0:02:53.7]} 20. f4 {[%clk 0:02:51]} 20... Qf6 {[%clk 0:02:53.7]} 21. f5
{[%clk 0:02:49.2]} 21... a4 {[%clk 0:02:53.3]} 22. Nc1 {[%clk 0:02:48.2]} 22...
Nc5 {[%clk 0:02:30.7]} 23. Nd3 {[%clk 0:02:47.9]} 23... Nxd3 {[%clk 0:02:30.8]}
24. Qxd3 {[%clk 0:02:48]} 24... Ra5 {[%clk 0:02:29.2]} 25. g4 {[%clk 0:02:46.4]}
25... Rc5 {[%clk 0:02:27.9]} 26. Rg1 {[%clk 0:02:42.6]} 26... Rc8 {[%clk
0:02:27.4]} 27. Rg3 {[%clk 0:02:40.7]} 27... c6 {[%clk 0:02:27.7]} 28. Rag1
{[%clk 0:02:31.2]} 28... Qg5 {[%clk 0:02:24.5]} 29. Rh3 {[%clk 0:02:11.1]} 29...
cxd5 {[%clk 0:02:04.4]} 30. cxd5 {[%clk 0:02:10.4]} 30... Rc4 {[%clk 0:02:04.8]}
31. Rh5 {[%clk 0:02:06.4]} 31... Qf4 {[%clk 0:02:04.8]} 32. g5 {[%clk
0:02:06.7]} 32... Rxc3 {[%clk 0:01:52.7]} 33. Qe2 {[%clk 0:01:42]} 33... Rc2
{[%clk 0:01:04.9]} 34. Qg4 {[%clk 0:01:41.6]} 34... hxg5 {[%clk 0:01:01.5]} 35.
Rxg5 {[%clk 0:01:31.6]} 35... Qxh2# {[%clk 0:01:00.9]} 0-1

[Event "Early-Titled-Tuesday-Blitz-February-06-2024"]
[Site "Chess.com"]
[Date "2024.02.06"]
[Round "6"]
[White "AnishOnYoutube"]
[Black "Hikaru"]
[Result "1/2-1/2"]
[WhiteElo "3013"]
[BlackElo "3307"]
[TimeControl "180+1"]
[EndTime "9:05:21 PST"]
[Termination "Game drawn by agreement"]

1. e4 {[%clk 0:03:00.9]} 1... e5 {[%clk 0:03:00.3]} 2. Nf3 {[%clk 0:03:01.4]}
2... Nc6 {[%clk 0:03:00.9]} 3. Bb5 {[%clk 0:03:01.7]} 3... Nf6 {[%clk
0:03:01.6]} 4. O-O {[%clk 0:03:02]} 4... Nxe4 {[%clk 0:03:01.9]} 5. Re1 {[%clk
0:03:02.6]} 5... Nd6 {[%clk 0:03:02.3]} 6. Nxe5 {[%clk 0:03:03]} 6... Be7 {[%clk
0:03:02.7]} 7. Bf1 {[%clk 0:03:03.3]} 7... Nxe5 {[%clk 0:02:53.8]} 8. Rxe5
{[%clk 0:03:03.3]} 8... O-O {[%clk 0:02:54.1]} 9. Nc3 {[%clk 0:03:03]} 9... Ne8
{[%clk 0:02:47.8]} 10. Nd5 {[%clk 0:03:02.8]} 10... Bd6 {[%clk 0:02:48.2]} 11.
Re1 {[%clk 0:03:03.1]} 11... c6 {[%clk 0:02:40]} 12. Ne3 {[%clk 0:03:03.3]}
12... Be7 {[%clk 0:02:37.8]} 13. c4 {[%clk 0:03:03.1]} 13... Bf6 {[%clk
0:02:36.9]} 14. d4 {[%clk 0:03:02.6]} 14... d5 {[%clk 0:02:34.3]} 15. cxd5
{[%clk 0:02:54.2]} 15... cxd5 {[%clk 0:02:35.2]} 16. g3 {[%clk 0:02:48.9]} 16...
Be6 {[%clk 0:02:26.8]} 17. Bg2 {[%clk 0:02:49.1]} 17... Nc7 {[%clk 0:02:26.9]}
18. Ng4 {[%clk 0:02:48.3]} 18... Be7 {[%clk 0:02:21.8]} 19. Bf4 {[%clk
0:02:45.6]} 19... Bd6 {[%clk 0:02:20.8]} 20. Bxd6 {[%clk 0:02:37.8]} 20... Qxd6
{[%clk 0:02:21.7]} 21. Ne3 {[%clk 0:02:34.3]} 21... Qb6 {[%clk 0:02:17.9]} 22.
Qd2 {[%clk 0:02:33.4]} 22... Rad8 {[%clk 0:02:16.2]} 23. Rac1 {[%clk 0:02:32.8]}
23... Ne8 {[%clk 0:02:16.3]} 24. Rc5 {[%clk 0:02:25.1]} 24... Nf6 {[%clk
0:02:16.6]} 25. Rec1 {[%clk 0:02:25.1]} 25... h5 {[%clk 0:02:11.8]} 26. b3
{[%clk 0:02:01.2]} 26... h4 {[%clk 0:01:57.2]} 27. Qa5 {[%clk 0:01:54.4]} 27...
Qxa5 {[%clk 0:01:50.5]} 28. Rxa5 {[%clk 0:01:54.4]} 28... hxg3 {[%clk
0:01:49.1]} 29. hxg3 {[%clk 0:01:54]} 29... a6 {[%clk 0:01:49.1]} 30. Rac5
{[%clk 0:01:51.8]} 30... Rd7 {[%clk 0:01:44.8]} 31. Rc8 {[%clk 0:01:44.3]} 31...
g6 {[%clk 0:01:41.9]} 32. f3 {[%clk 0:01:38.5]} 32... Re7 {[%clk 0:01:38.8]} 33.
Rxf8+ {[%clk 0:01:38]} 33... Kxf8 {[%clk 0:01:39.7]} 34. Kf2 {[%clk 0:01:38.3]}
34... Ke8 {[%clk 0:01:39.1]} 35. Bf1 {[%clk 0:01:34.7]} 35... Kd7 {[%clk
0:01:39.1]} 36. b4 {[%clk 0:01:35]} 36... Kd6 {[%clk 0:01:39.3]} 37. a4 {[%clk
0:01:33.6]} 37... Re8 {[%clk 0:01:39.1]} 38. a5 {[%clk 0:01:26.3]} 38... Bd7
{[%clk 0:01:31.6]} 39. g4 {[%clk 0:01:24.8]} 39... Bc6 {[%clk 0:01:28.4]} 40.
Bd3 {[%clk 0:01:13]} 40... Nd7 {[%clk 0:01:26.8]} 41. Re1 {[%clk 0:01:09.5]}
1/2-1/2

[Event "Early-Titled-Tuesday-Blitz-February-06-2024"]
[Site "Chess.com"]
[Date "2024.02.06"]
[Round "6"]
[White "zsoltkorpics"]
[Black "Bilan_Danila"]
[Result "0-1"]
[WhiteElo "2466"]
[BlackElo "2617"]
[TimeControl "180+1"]
[EndTime "9:05:28 PST"]
[Termination "Bilan_Danila won by checkmate"]

1. e4 {[%clk 0:03:00.9]} 1... c6 {[%clk 0:02:57.4]} 2. Nf3 {[%clk 0:02:59.9]}
2... d5 {[%clk 0:02:57.6]} 3. Nc3 {[%clk 0:03:00.2]} 3... Nf6 {[%clk 0:02:54.3]}
4. e5 {[%clk 0:02:59.6]} 4... Ne4 {[%clk 0:02:46.9]} 5. Ne2 {[%clk 0:02:59.2]}
5... Nc5 {[%clk 0:02:43.1]} 6. g3 {[%clk 0:02:54.9]} 6... Bg4 {[%clk 0:02:37.4]}
7. Bg2 {[%clk 0:02:54.5]} 7... e6 {[%clk 0:02:35.8]} 8. O-O {[%clk 0:02:53.8]}
8... Be7 {[%clk 0:02:31.7]} 9. b4 {[%clk 0:02:53.7]} 9... Ncd7 {[%clk 0:02:31]}
10. d4 {[%clk 0:02:46.9]} 10... Bxb4 {[%clk 0:02:21.6]} 11. Rb1 {[%clk 0:02:47]}
11... Ba5 {[%clk 0:02:16.6]} 12. Ba3 {[%clk 0:02:44.3]} 12... Bb6 {[%clk
0:01:54.8]} 13. h3 {[%clk 0:02:35.7]} 13... Bxf3 {[%clk 0:01:45.5]} 14. Bxf3
{[%clk 0:02:36.6]} 14... c5 {[%clk 0:01:46]} 15. c4 {[%clk 0:02:29.5]} 15...
cxd4 {[%clk 0:01:36]} 16. cxd5 {[%clk 0:02:24.5]} 16... Nxe5 {[%clk 0:01:30.3]}
17. Bg2 {[%clk 0:02:24.5]} 17... Qf6 {[%clk 0:01:22]} 18. dxe6 {[%clk
0:02:14.6]} 18... Nbc6 {[%clk 0:01:17.4]} 19. exf7+ {[%clk 0:02:09.2]} 19...
Qxf7 {[%clk 0:01:01.8]} 20. Nf4 {[%clk 0:02:06.1]} 20... O-O-O {[%clk
0:00:52.1]} 21. Nd5 {[%clk 0:01:53.3]} 21... Rxd5 {[%clk 0:00:49.5]} 22. Bxd5
{[%clk 0:01:50.9]} 22... Qxd5 {[%clk 0:00:50.4]} 23. f4 {[%clk 0:01:43.3]} 23...
Nc4 {[%clk 0:00:34.6]} 24. Bc1 {[%clk 0:01:41.4]} 24... d3+ {[%clk 0:00:33.9]}
25. Kh2 {[%clk 0:01:40.8]} 25... d2 {[%clk 0:00:32.9]} 26. Qg4+ {[%clk
0:01:38.7]} 26... Kb8 {[%clk 0:00:32.1]} 27. Bb2 {[%clk 0:01:37]} 27... Ne3
{[%clk 0:00:26.5]} 28. Qxg7 {[%clk 0:01:34.5]} 28... Qg2# {[%clk 0:00:26]} 0-1

[Event "Early-Titled-Tuesday-Blitz-February-06-2024"]
[Site "Chess.com"]
[Date "2024.02.06"]
[Round "6"]
[White "KanalSzachowy"]
[Black "Zarinur"]
[Result "1-0"]
[WhiteElo "2374"]
[BlackElo "2492"]
[TimeControl "180+1"]
[EndTime "9:05:31 PST"]
[Termination "KanalSzachowy won by resignation"]

1. e4 {[%clk 0:03:00.9]} 1... e5 {[%clk 0:02:59.6]} 2. Nf3 {[%clk 0:03:00.4]}
2... Nc6 {[%clk 0:02:58.4]} 3. Bc4 {[%clk 0:03:00]} 3... Bc5 {[%clk 0:02:57.3]}
4. c3 {[%clk 0:03:00.2]} 4... Nf6 {[%clk 0:02:56.6]} 5. d4 {[%clk 0:03:00.8]}
5... exd4 {[%clk 0:02:55.8]} 6. cxd4 {[%clk 0:03:01.7]} 6... Bb4+ {[%clk
0:02:55.6]} 7. Nbd2 {[%clk 0:03:02.2]} 7... d5 {[%clk 0:02:45.2]} 8. exd5 {[%clk
0:03:01.4]} 8... Nxd5 {[%clk 0:02:44.7]} 9. O-O {[%clk 0:03:01.9]} 9... O-O
{[%clk 0:02:43.7]} 10. a3 {[%clk 0:03:01.9]} 10... Be7 {[%clk 0:02:42.4]} 11.
Re1 {[%clk 0:03:00.2]} 11... Bf5 {[%clk 0:02:34.6]} 12. Ne4 {[%clk 0:02:42.4]}
12... Nb6 {[%clk 0:02:29.8]} 13. Ba2 {[%clk 0:02:38]} 13... Bg4 {[%clk
0:02:28.7]} 14. Bf4 {[%clk 0:02:36.2]} 14... Bxf3 {[%clk 0:02:03.5]} 15. Qxf3
{[%clk 0:02:37.1]} 15... Nxd4 {[%clk 0:02:03.2]} 16. Qg3 {[%clk 0:02:37.5]}
16... Nf5 {[%clk 0:02:01]} 17. Qg4 {[%clk 0:02:35.9]} 17... Nd6 {[%clk
0:01:54.8]} 18. Rad1 {[%clk 0:02:25.9]} 18... Nbc8 {[%clk 0:01:47.9]} 19. Be5
{[%clk 0:01:36.5]} 19... g6 {[%clk 0:01:28.9]} 20. Qf4 {[%clk 0:01:36.9]} 20...
a5 {[%clk 0:00:53.1]} 21. Bc3 {[%clk 0:01:18.3]} 21... Ra6 {[%clk 0:00:47.4]}
22. Qe5 {[%clk 0:01:18.2]} 1-0

[Event "Early-Titled-Tuesday-Blitz-February-06-2024"]
[Site "Chess.com"]
[Date "2024.02.06"]
[Round "6"]
[White "Irishchessman16"]
[Black "NovozhilovSemen"]
[Result "0-1"]
[WhiteElo "2512"]
[BlackElo "2686"]
[TimeControl "180+1"]
[EndTime "9:05:40 PST"]
[Termination "NovozhilovSemen won by checkmate"]

1. d4 {[%clk 0:03:00.9]} 1... Nf6 {[%clk 0:02:59.8]} 2. Nf3 {[%clk 0:03:00.7]}
2... e6 {[%clk 0:03:00]} 3. e3 {[%clk 0:03:00.5]} 3... c5 {[%clk 0:02:59.9]} 4.
Bd3 {[%clk 0:02:57.4]} 4... b6 {[%clk 0:03:00.1]} 5. O-O {[%clk 0:02:51.3]} 5...
Bb7 {[%clk 0:03:00.1]} 6. c4 {[%clk 0:02:51.8]} 6... cxd4 {[%clk 0:02:52]} 7.
exd4 {[%clk 0:02:52.7]} 7... Be7 {[%clk 0:02:52]} 8. Nc3 {[%clk 0:02:49.3]} 8...
O-O {[%clk 0:02:51]} 9. d5 {[%clk 0:02:44.1]} 9... h6 {[%clk 0:02:48.5]} 10. Bc2
{[%clk 0:02:32.7]} 10... Bb4 {[%clk 0:02:35.2]} 11. Ne4 {[%clk 0:01:42.6]} 11...
exd5 {[%clk 0:02:30.7]} 12. cxd5 {[%clk 0:01:35.9]} 12... Nxd5 {[%clk
0:02:13.4]} 13. Nd4 {[%clk 0:01:14.6]} 13... Nf6 {[%clk 0:02:00.6]} 14. Ng3
{[%clk 0:01:10]} 14... Nc6 {[%clk 0:01:52.9]} 15. Ndf5 {[%clk 0:01:08.9]} 15...
Ne7 {[%clk 0:01:51.2]} 16. Nxh6+ {[%clk 0:00:59.9]} 16... gxh6 {[%clk
0:01:49.3]} 17. Bxh6 {[%clk 0:00:53.4]} 17... Ng6 {[%clk 0:01:31]} 18. Qd4
{[%clk 0:00:27.4]} 18... Bc5 {[%clk 0:01:26.7]} 19. Qd2 {[%clk 0:00:21.7]} 19...
Re8 {[%clk 0:01:23.9]} 20. h4 {[%clk 0:00:20.5]} 20... Ng4 {[%clk 0:01:20.7]}
21. Bg5 {[%clk 0:00:19.1]} 21... Qc7 {[%clk 0:01:18.5]} 22. Nf5 {[%clk
0:00:16.4]} 22... Qh2# {[%clk 0:01:18.2]} 0-1

[Event "Early-Titled-Tuesday-Blitz-February-06-2024"]
[Site "Chess.com"]
[Date "2024.02.06"]
[Round "6"]
[White "AniJak"]
[Black "kleopl"]
[Result "0-1"]
[WhiteElo "2383"]
[BlackElo "2527"]
[TimeControl "180+1"]
[EndTime "9:05:40 PST"]
[Termination "kleopl won by resignation"]

1. e4 {[%clk 0:03:00.9]} 1... c5 {[%clk 0:02:59.2]} 2. Nc3 {[%clk 0:03:00.5]}
2... d6 {[%clk 0:02:58.9]} 3. g3 {[%clk 0:02:59.7]} 3... Nc6 {[%clk 0:02:57.5]}
4. Bg2 {[%clk 0:02:59.4]} 4... g6 {[%clk 0:02:58.2]} 5. d3 {[%clk 0:02:58.5]}
5... Bg7 {[%clk 0:02:58.7]} 6. Nh3 {[%clk 0:02:58.1]} 6... e6 {[%clk 0:02:58.3]}
7. O-O {[%clk 0:02:58.1]} 7... Nge7 {[%clk 0:02:58.6]} 8. Be3 {[%clk 0:02:58]}
8... O-O {[%clk 0:02:58.2]} 9. Qd2 {[%clk 0:02:58.5]} 9... Rb8 {[%clk
0:02:52.4]} 10. Bh6 {[%clk 0:02:57.7]} 10... b5 {[%clk 0:02:52.6]} 11. Bxg7
{[%clk 0:02:54.1]} 11... Kxg7 {[%clk 0:02:53.5]} 12. f4 {[%clk 0:02:54.2]} 12...
Nd4 {[%clk 0:02:47]} 13. Rae1 {[%clk 0:02:51.6]} 13... b4 {[%clk 0:02:45.1]} 14.
Nd1 {[%clk 0:02:51]} 14... a5 {[%clk 0:02:42.1]} 15. c3 {[%clk 0:02:50.3]} 15...
Ndc6 {[%clk 0:02:41.8]} 16. f5 {[%clk 0:02:47.6]} 16... exf5 {[%clk 0:02:38.3]}
17. exf5 {[%clk 0:02:47.7]} 17... Bxf5 {[%clk 0:02:32.3]} 18. Rxf5 {[%clk
0:02:46.1]} 18... gxf5 {[%clk 0:02:30.7]} 19. Qg5+ {[%clk 0:02:43.9]} 19... Ng6
{[%clk 0:02:11.3]} 20. Qxf5 {[%clk 0:02:39.2]} 20... Nce5 {[%clk 0:02:01.9]} 21.
d4 {[%clk 0:02:27.7]} 21... cxd4 {[%clk 0:01:54.7]} 22. cxd4 {[%clk 0:02:26.9]}
22... Qb6 {[%clk 0:01:51.9]} 23. Ne3 {[%clk 0:01:52.2]} 23... Qxd4 {[%clk
0:01:44.2]} 24. Qf2 {[%clk 0:01:44.5]} 24... Qc5 {[%clk 0:01:29.8]} 25. Rf1
{[%clk 0:01:21.4]} 25... f5 {[%clk 0:01:23.9]} 26. Kh1 {[%clk 0:01:15.3]} 26...
Ng4 {[%clk 0:01:17.6]} 27. Nxf5+ {[%clk 0:01:10.3]} 27... Kh8 {[%clk 0:01:04.1]}
28. Qf4 {[%clk 0:00:52.2]} 28... Nxf4 {[%clk 0:01:02.9]} 0-1

[Event "Early-Titled-Tuesday-Blitz-February-06-2024"]
[Site "Chess.com"]
[Date "2024.02.06"]
[Round "6"]
[White "Rud_Makarian"]
[Black "LikeWater"]
[Result "1-0"]
[WhiteElo "3033"]
[BlackElo "2824"]
[TimeControl "180+1"]
[EndTime "9:05:46 PST"]
[Termination "Rud_Makarian won by resignation"]

1. d4 {[%clk 0:03:00.9]} 1... Nf6 {[%clk 0:02:57.5]} 2. c4 {[%clk 0:03:01.4]}
2... g6 {[%clk 0:02:57.3]} 3. Nc3 {[%clk 0:03:01.3]} 3... d5 {[%clk 0:02:57.6]}
4. Bf4 {[%clk 0:03:01.3]} 4... c6 {[%clk 0:02:57.1]} 5. e3 {[%clk 0:03:02.1]}
5... Bg7 {[%clk 0:02:57]} 6. Nf3 {[%clk 0:03:02.5]} 6... O-O {[%clk 0:02:56.8]}
7. Be2 {[%clk 0:03:01.9]} 7... Bg4 {[%clk 0:02:50.2]} 8. Qb3 {[%clk 0:03:01.7]}
8... Qb6 {[%clk 0:02:49.7]} 9. Qxb6 {[%clk 0:02:56.8]} 9... axb6 {[%clk
0:02:50.6]} 10. cxd5 {[%clk 0:02:57]} 10... Nxd5 {[%clk 0:02:38.3]} 11. Nxd5
{[%clk 0:02:53.3]} 11... cxd5 {[%clk 0:02:38.8]} 12. Kd2 {[%clk 0:02:39.6]}
12... Nc6 {[%clk 0:02:37.1]} 13. Rhc1 {[%clk 0:02:39.9]} 13... e6 {[%clk
0:02:32.5]} 14. h3 {[%clk 0:02:31.6]} 14... Bxf3 {[%clk 0:02:32.3]} 15. Bxf3
{[%clk 0:02:32.5]} 15... b5 {[%clk 0:02:32]} 16. Rc5 {[%clk 0:02:28.7]} 16... b4
{[%clk 0:02:27.7]} 17. Rb5 {[%clk 0:02:28.9]} 17... Ra7 {[%clk 0:02:25.9]} 18.
Bd6 {[%clk 0:01:50.8]} 18... Rfa8 {[%clk 0:02:24.4]} 19. Bxb4 {[%clk 0:01:46]}
19... Rxa2 {[%clk 0:02:02.4]} 20. Rxa2 {[%clk 0:01:45.6]} 20... Rxa2 {[%clk
0:02:03.3]} 21. Bc5 {[%clk 0:01:42.8]} 21... Na5 {[%clk 0:01:51.4]} 22. Kc2
{[%clk 0:01:30.4]} 22... Ra1 {[%clk 0:01:29.4]} 23. b4 {[%clk 0:01:30.3]} 23...
Nc4 {[%clk 0:01:26.9]} 24. Rxb7 {[%clk 0:01:30.3]} 24... h5 {[%clk 0:01:22.7]}
25. b5 {[%clk 0:01:25.1]} 25... Ra2+ {[%clk 0:01:21.8]} 26. Kc3 {[%clk
0:01:22.8]} 26... Rxf2 {[%clk 0:01:18.7]} 27. b6 {[%clk 0:01:22.1]} 27... Nxe3
{[%clk 0:01:12.3]} 28. Rb8+ {[%clk 0:01:00.1]} 28... Kh7 {[%clk 0:01:10.8]} 29.
b7 {[%clk 0:01:01]} 1-0

[Event "Early-Titled-Tuesday-Blitz-February-06-2024"]
[Site "Chess.com"]
[Date "2024.02.06"]
[Round "6"]
[White "winniethepooh04"]
[Black "NastyaHn"]
[Result "1-0"]
[WhiteElo "2515"]
[BlackElo "2377"]
[TimeControl "180+1"]
[EndTime "9:05:46 PST"]
[Termination "winniethepooh04 won by resignation"]

1. d4 {[%clk 0:03:00.9]} 1... d5 {[%clk 0:02:59.2]} 2. Nf3 {[%clk 0:03:01.1]}
2... Nf6 {[%clk 0:02:58.3]} 3. Bf4 {[%clk 0:03:01.8]} 3... c5 {[%clk 0:02:56.4]}
4. e3 {[%clk 0:03:01.8]} 4... Nc6 {[%clk 0:02:56.1]} 5. c3 {[%clk 0:03:02]} 5...
Qb6 {[%clk 0:02:56.2]} 6. Qc2 {[%clk 0:03:01.8]} 6... g6 {[%clk 0:02:55.1]} 7.
Nbd2 {[%clk 0:03:01.9]} 7... Bf5 {[%clk 0:02:54.9]} 8. dxc5 {[%clk 0:03:02.5]}
8... Qxc5 {[%clk 0:02:53.2]} 9. Qb3 {[%clk 0:03:02.7]} 9... Qb6 {[%clk
0:02:42.2]} 10. Be2 {[%clk 0:02:53.7]} 10... Bg7 {[%clk 0:02:40.9]} 11. O-O
{[%clk 0:02:53.4]} 11... O-O {[%clk 0:02:41.2]} 12. h3 {[%clk 0:02:51.6]} 12...
Ne4 {[%clk 0:02:32.6]} 13. Rfd1 {[%clk 0:02:48.2]} 13... Nxd2 {[%clk 0:02:30.7]}
14. Rxd2 {[%clk 0:02:45]} 14... e5 {[%clk 0:02:30.8]} 15. Bh2 {[%clk 0:02:45.5]}
15... Be6 {[%clk 0:02:30.9]} 16. Qxb6 {[%clk 0:02:39.5]} 16... axb6 {[%clk
0:02:30.9]} 17. Bb5 {[%clk 0:02:40.1]} 17... f6 {[%clk 0:02:30]} 18. a3 {[%clk
0:02:35]} 18... Rfd8 {[%clk 0:02:29]} 19. Rad1 {[%clk 0:02:27.8]} 19... Bf8
{[%clk 0:02:27.9]} 20. Ne1 {[%clk 0:02:23.7]} 20... Na5 {[%clk 0:02:21]} 21. Bf1
{[%clk 0:02:21.3]} 21... Nb3 {[%clk 0:02:20]} 22. Re2 {[%clk 0:02:20.2]} 22...
Kf7 {[%clk 0:02:08.3]} 23. Nd3 {[%clk 0:02:15.5]} 23... Nc5 {[%clk 0:02:04.1]}
24. Nb4 {[%clk 0:02:13.8]} 24... Na4 {[%clk 0:01:55]} 25. Red2 {[%clk
0:02:06.2]} 25... Bxb4 {[%clk 0:01:50]} 26. axb4 {[%clk 0:02:07.1]} 26... b5
{[%clk 0:01:32.7]} 27. Bxb5 {[%clk 0:02:01.9]} 27... Nb6 {[%clk 0:01:33.3]} 28.
e4 {[%clk 0:02:00.3]} 28... Ke7 {[%clk 0:01:30.5]} 29. exd5 {[%clk 0:01:54.8]}
29... Nxd5 {[%clk 0:01:29.2]} 30. Bc4 {[%clk 0:01:49.1]} 30... Nxb4 {[%clk
0:01:12.4]} 31. Rxd8 {[%clk 0:01:47.6]} 31... Rxd8 {[%clk 0:00:59.4]} 32. Rxd8
{[%clk 0:01:46.7]} 32... Bxc4 {[%clk 0:00:57.5]} 33. Rb8 {[%clk 0:01:40.7]}
33... Nd3 {[%clk 0:00:55.7]} 34. Rxb7+ {[%clk 0:01:40.6]} 34... Ke6 {[%clk
0:00:56.2]} 35. b4 {[%clk 0:01:34.2]} 35... Nc1 {[%clk 0:00:55.4]} 36. Rxh7
{[%clk 0:01:31.7]} 36... Ne2+ {[%clk 0:00:55.2]} 37. Kh1 {[%clk 0:01:32]} 37...
Nxc3 {[%clk 0:00:55]} 38. Rc7 {[%clk 0:01:30.7]} 38... Kd5 {[%clk 0:00:53.8]}
39. Rc5+ {[%clk 0:01:30.5]} 39... Kd4 {[%clk 0:00:54.2]} 40. Bg1 {[%clk
0:01:28]} 40... Ne4 {[%clk 0:00:53.5]} 41. f3+ {[%clk 0:01:27.3]} 1-0

[Event "Early-Titled-Tuesday-Blitz-February-06-2024"]
[Site "Chess.com"]
[Date "2024.02.06"]
[Round "6"]
[White "MFatigue"]
[Black "TV27"]
[Result "0-1"]
[WhiteElo "2437"]
[BlackElo "2171"]
[TimeControl "180+1"]
[EndTime "9:05:50 PST"]
[Termination "TV27 won by resignation"]

1. e4 {[%clk 0:03:00.9]} 1... c5 {[%clk 0:02:59]} 2. a3 {[%clk 0:03:01]} 2... g6
{[%clk 0:02:53]} 3. h4 {[%clk 0:03:00.8]} 3... h5 {[%clk 0:02:49.1]} 4. Nc3
{[%clk 0:03:01.2]} 4... Bg7 {[%clk 0:02:48.5]} 5. Bc4 {[%clk 0:03:01.9]} 5... e6
{[%clk 0:02:44.7]} 6. d3 {[%clk 0:03:02.3]} 6... Nc6 {[%clk 0:02:39.8]} 7. Nge2
{[%clk 0:03:02.3]} 7... Nge7 {[%clk 0:02:15.8]} 8. Bg5 {[%clk 0:03:01.9]} 8...
f6 {[%clk 0:02:15.9]} 9. Bf4 {[%clk 0:03:01.7]} 9... d5 {[%clk 0:02:15.5]} 10.
exd5 {[%clk 0:03:02.6]} 10... exd5 {[%clk 0:02:15.5]} 11. Bb5 {[%clk 0:03:03.5]}
11... O-O {[%clk 0:02:14.5]} 12. O-O {[%clk 0:03:03]} 12... a6 {[%clk
0:02:03.4]} 13. Bxc6 {[%clk 0:03:01.7]} 13... Nxc6 {[%clk 0:01:56.9]} 14. Qd2
{[%clk 0:03:02]} 14... b5 {[%clk 0:01:43.4]} 15. d4 {[%clk 0:02:47.9]} 15...
cxd4 {[%clk 0:01:33.1]} 16. Nxd4 {[%clk 0:02:48.8]} 16... Nxd4 {[%clk
0:01:33.1]} 17. Qxd4 {[%clk 0:02:49.7]} 17... f5 {[%clk 0:01:33.3]} 18. Qxd5+
{[%clk 0:02:48.9]} 18... Qxd5 {[%clk 0:01:33]} 19. Nxd5 {[%clk 0:02:49.8]} 19...
Bxb2 {[%clk 0:01:31.6]} 20. Ra2 {[%clk 0:02:22.1]} 20... Bg7 {[%clk 0:01:21]}
21. Re1 {[%clk 0:02:17.9]} 21... Bb7 {[%clk 0:01:17]} 22. Nc7 {[%clk 0:02:15]}
22... Rac8 {[%clk 0:01:12.1]} 23. Kf1 {[%clk 0:01:57.4]} 23... Bf6 {[%clk
0:01:08.6]} 24. g3 {[%clk 0:01:54]} 24... Rf7 {[%clk 0:01:06]} 25. Ne6 {[%clk
0:01:51.2]} 25... Bd5 {[%clk 0:01:05.7]} 26. c4 {[%clk 0:01:36.6]} 26... Bxc4+
{[%clk 0:01:04.2]} 27. Rae2 {[%clk 0:01:37.5]} 27... Re8 {[%clk 0:00:59]} 28.
Kg2 {[%clk 0:01:13.4]} 28... Bxe2 {[%clk 0:00:56.9]} 29. Nc7 {[%clk 0:01:06.9]}
29... Re4 {[%clk 0:00:51.4]} 30. Nd5 {[%clk 0:00:58.2]} 30... Bf3+ {[%clk
0:00:50.3]} 31. Kf1 {[%clk 0:00:56.8]} 31... Rxe1+ {[%clk 0:00:50.4]} 0-1

[Event "Early-Titled-Tuesday-Blitz-February-06-2024"]
[Site "Chess.com"]
[Date "2024.02.06"]
[Round "6"]
[White "chezzgirl04"]
[Black "jlandaw"]
[Result "0-1"]
[WhiteElo "2161"]
[BlackElo "2355"]
[TimeControl "180+1"]
[EndTime "9:05:51 PST"]
[Termination "jlandaw won on time"]

1. e4 {[%clk 0:01:26.2]} 1... e5 {[%clk 0:02:57.3]} 2. Nf3 {[%clk 0:01:25.9]}
2... Nc6 {[%clk 0:02:57.8]} 3. Bb5 {[%clk 0:01:25.1]} 3... a6 {[%clk 0:02:57.9]}
4. Ba4 {[%clk 0:01:24.9]} 4... Nf6 {[%clk 0:02:58.4]} 5. Kf1 {[%clk 0:01:25.1]}
5... b5 {[%clk 0:02:57.9]} 6. Bb3 {[%clk 0:01:23.2]} 6... Bc5 {[%clk 0:02:58.4]}
7. c3 {[%clk 0:01:12.1]} 7... Nxe4 {[%clk 0:02:42.8]} 8. d4 {[%clk 0:01:09.4]}
8... exd4 {[%clk 0:02:42.7]} 9. cxd4 {[%clk 0:01:08.9]} 9... Bb6 {[%clk
0:02:43]} 10. Nc3 {[%clk 0:00:50.9]} 10... Nxc3 {[%clk 0:02:39.4]} 11. bxc3
{[%clk 0:00:41]} 11... O-O {[%clk 0:02:38.2]} 12. Qd3 {[%clk 0:00:29.1]} 12...
d5 {[%clk 0:02:31.9]} 13. Ng5 {[%clk 0:00:26.5]} 13... g6 {[%clk 0:02:28.8]} 14.
h4 {[%clk 0:00:24.5]} 14... Bf5 {[%clk 0:02:20.7]} 15. Qf3 {[%clk 0:00:21.8]}
15... Re8 {[%clk 0:02:20.3]} 16. h5 {[%clk 0:00:20.4]} 16... Nxd4 {[%clk
0:02:13.1]} 17. cxd4 {[%clk 0:00:17.1]} 17... Bxd4 {[%clk 0:02:14]} 18. hxg6
{[%clk 0:00:15.6]} 18... Bxg6 {[%clk 0:02:08.3]} 19. Rxh7 {[%clk 0:00:09.6]}
19... Bxa1 {[%clk 0:02:01]} 20. Rxf7 {[%clk 0:00:09.3]} 20... c6 {[%clk
0:01:43.2]} 21. Bc2 {[%clk 0:00:03.1]} 21... Qd6 {[%clk 0:01:26.9]} 0-1